bitfinex/quotes_ETHUSD_20241204
["timestamp","ask_amount","ask_price","bid_price","bid_amount"]
[1733330593623,0.52063225,3765.1,3764.6,2.6563]
[1733330593972,0.52063225,3765.1,3764.2,0.005]
[1733330594317,0.52063225,3765.1,3764.6,2.6563]
[1733330594477,2.65557,3765.7,3764.2,0.005]
[1733330594817,0.416627,3765.6,3764.2,0.005]
[1733330595020,0.416627,3765.6,3764.8,2.65618]
[1733330595021,0.54288285,3765.3,3764.8,2.65618]
[1733330595176,0.54288285,3765.3,3764.3,2.65653]
[1733330595377,1.5107,3765.8,3765.2,2.6559]
[1733330595683,1.5107,3765.8,3765.5,2.65568]
[1733330595876,1.5041,3766.9,3764.7,1.6234]
[1733330596220,1.5424,3765.6,3764.3,0.55]
[1733330596428,1.5424,3765.6,3764.6,2.6563]
[1733330596740,4.19804,3765.6,3764.4,2.6564]
[1733330596878,1.5424,3765.6,3764.2,0.005]
[1733330597402,4.19802,3765.6,3764.4,2.65646]
[1733330597610,1.6097,3765.4,3764.2,0.005]
[1733330598185,0.54297849,3764.9,3764.2,0.005]
[1733330598385,0.54297849,3764.9,3764.2,2.6616]
[1733330599193,0.54297849,3764.9,3764.2,0.005]
[1733330599615,1.6143,3764.8,3764.2,0.005]
[1733330599921,4.75183285,3764.8,3764.2,0.005]
[1733330600728,2.09563285,3764.8,3764.2,0.005]
[1733330600926,2.65646,3764.4,3764.2,0.005]
[1733330601126,2.65653,3764.3,3764.2,0.005]
[1733330602056,3.18198853,3764.3,3764.2,0.005]
[1733330602260,0.84365738,3764.3,3764.2,0.005]
[1733330602426,0.52545853,3764.3,3764.2,0.005]
[1733330602922,1.6143,3764.8,3764.2,0.005]
[1733330603121,1.5062,3764.3,3764.2,0.005]
[1733330603533,2.65622,3764.8,3764.2,0.005]
[1733330603534,1.5062,3764.8,3764.2,0.005]
[1733330604065,0.52455513,3764.5,3764.2,0.005]
[1733330604254,0.99324964,3764.5,3764.2,0.005]
[1733330604440,0.52455513,3764.5,3764.2,0.005]
[1733330604637,3.18096513,3764.5,3764.2,0.005]
[1733330605437,1.6582,3764.4,3764.2,0.005]
[1733330606168,4.31467,3764.4,3764.2,0.005]
[1733330606379,2.65653,3764.3,3764.2,0.005]
[1733330606532,3.14045851,3764.3,3764.2,0.005]
[1733330606865,0.48392851,3764.3,3764.2,0.005]
[1733330607082,3.14045851,3764.3,3764.2,0.005]
[1733330607230,4.67645851,3764.3,3764.2,0.005]
[1733330611395,1.536,3764.3,3764.2,0.005]
[1733330611549,0.52455513,3764.5,3764.2,0.005]
[1733330611765,1.5515,3764.9,3764.2,0.005]
[1733330612083,1.5515,3764.9,3763.3,0.01479963]
[1733330612084,4.77896737,3764.3,3763.3,0.01479963]
[1733330612264,2.12243737,3764.3,3763.3,0.01479963]
[1733330612603,2.65698,3763.7,3763.3,0.01479963]
[1733330612916,2.65715,3763.5,3763.3,0.01479963]
[1733330613088,1.5968,3763.4,3763.3,0.01479963]
[1733330614176,2.6568,3764.0,3763.3,0.01479963]
[1733330614375,0.53181764,3763.4,3763.3,0.01479963]
[1733330614701,4.80168764,3763.4,3763.3,0.01479963]
[1733330615013,5.5475574,3763.4,3763.3,0.01479963]
[1733330615299,2.65739,3763.1,3762.0,0.00170675]
[1733330615463,2.65753,3762.9,3762.0,0.00170675]
[1733330615663,1.6127,3763.4,3762.0,0.00170675]
[1733330615863,1.6363,3762.6,3762.0,0.00170675]
[1733330616100,0.51826577,3762.5,3762.0,0.00170675]
[1733330616308,0.51826577,3762.5,3762.0,2.65982675]
[1733330616612,0.51826577,3762.5,3762.0,0.00170675]
[1733330616965,0.51826577,3762.5,3762.2,2.65799]
[1733330617167,2.65711,3763.5,3762.2,2.65799]
[1733330617168,3.0,3764.0,3762.3,2.65794]
[1733330617367,0.53096732,3762.7,3762.2,1.5512]
[1733330617595,0.53096732,3762.7,3762.6,2.65773]
[1733330617763,4.6363,3764.1,3762.0,0.00170675]
[1733330617764,1.6363,3763.7,3762.0,0.00170675]
[1733330618109,2.07878053,3762.8,3762.0,0.00170675]
[1733330618267,0.47362305,3762.7,3762.0,0.00170675]
[1733330618468,2.65768,3762.7,3762.0,0.00170675]
[1733330618695,2.07878053,3762.8,3762.0,0.00170675]
[1733330619307,2.65771,3762.7,3762.0,0.00170675]
[1733330619523,2.07878053,3762.8,3762.0,0.00170675]
[1733330619669,0.53288053,3762.8,3762.2,2.658]
[1733330619869,0.53288053,3762.8,3762.0,0.00170675]
[1733330620069,0.53288053,3762.8,3762.1,2.65802]
[1733330620390,0.53288053,3762.8,3762.2,2.658]
[1733330620575,0.53288053,3762.8,3762.0,2.65982675]
[1733330620777,0.53288053,3762.8,3762.0,0.00170675]
[1733330621009,0.53288053,3762.8,3762.7,2.65766]
[1733330621211,1.5728,3763.6,3762.9,2.6575]
[1733330621507,1.5728,3763.6,3762.9,2.65745]
[1733330622168,2.65677,3764.0,3762.9,2.65745]
[1733330622169,1.5948,3764.0,3762.9,2.65752]
[1733330622367,1.5948,3764.0,3763.0,1.6204]
[1733330622569,1.5948,3764.5,3763.0,1.6204]
[1733330622808,1.5948,3764.5,3763.2,2.65731]
[1733330623026,0.54008209,3764.0,3763.2,2.65731]
[1733330623320,1.5577,3765.8,3765.4,2.65573]
[1733330623527,0.15577,3765.8,3765.4,2.65573]
[1733330623670,0.15577,3765.8,3764.5,1.5913]
[1733330623671,1.5577,3766.2,3764.5,1.5913]
[1733330624066,2.65535,3766.0,3764.7,2.65618]
[1733330624294,2.6555,3765.8,3764.5,1.5913]
[1733330624506,0.52801173,3765.1,3763.5,1.5701]
[1733330624712,1.5592,3765.2,3763.5,1.5701]
[1733330624713,0.20872117,3765.0,3763.5,1.5701]
[1733330624920,1.5592,3764.9,3763.1,1.5701]
[1733330625080,1.5592,3764.0,3762.4,1.5701]
[1733330625721,1.5592,3764.0,3763.0,2.65741]
[1733330625873,1.5592,3764.0,3762.5,2.6578]
[1733330625874,1.5592,3764.0,3762.8,2.65758]
[1733330626072,0.52620383,3763.4,3762.8,2.65758]
[1733330626268,0.52620383,3763.4,3762.8,2.65757]
[1733330626824,1.980788,3764.0,3762.4,1.5701]
[1733330627027,1.5592,3764.0,3762.8,2.65759]
[1733330627209,1.5592,3764.0,3762.5,2.6578]
[1733330627210,0.53520931,3763.5,3762.5,2.6578]
[1733330627413,0.53520931,3763.5,3762.4,1.5701]
[1733330627414,0.53520931,3763.5,3762.6,2.65772]
[1733330627738,0.53520931,3763.5,3762.4,1.5701]
[1733330627943,0.53520931,3763.5,3762.5,2.6578]
[1733330628108,3.19230931,3763.5,3762.3,2.65791]
[1733330628313,0.31923093,3763.4,3762.3,2.65791]
[1733330628521,0.31923093,3763.4,3762.5,2.65774]
[1733330628727,0.53520931,3763.5,3762.5,2.65774]
[1733330629638,0.53520931,3763.5,3762.5,2.65779]
[1733330629639,1.6251,3763.4,3762.5,2.65779]
[1733330629837,1.6251,3763.4,3762.0,0.00170675]
[1733330629999,1.6251,3763.4,3762.4,2.65786]
[1733330630199,1.6251,3763.4,3762.0,0.00170675]
[1733330630200,2.65739,3763.1,3762.0,0.00170675]
[1733330630400,0.265739,3763.0,3762.0,0.00170675]
[1733330630641,1.5362,3762.9,3762.0,0.00170675]
[1733330630841,0.53031913,3762.7,3762.0,0.00170675]
[1733330631637,3.18798913,3762.7,3762.0,0.00170675]
[1733330631844,0.53031913,3762.7,3762.0,0.00170675]
[1733330631999,1.02929794,3762.7,3762.0,0.00170675]
[1733330632355,3.68696794,3762.7,3762.0,0.00170675]
[1733330632639,1.02929794,3762.7,3762.0,0.00170675]
[1733330632943,0.53031913,3762.7,3762.0,0.00170675]
[1733330634011,0.53031913,3762.7,3762.6,2.65773]
[1733330634338,9.95132789,3764.6,3762.1,2.65808]
[1733330634339,1.6603,3764.3,3762.7,2.65762]
[1733330634553,0.53633369,3763.4,3762.1,1.5922]
[1733330634712,1.6603,3764.3,3762.1,1.5922]
[1733330634905,0.16603,3764.2,3762.4,2.65781]
[1733330635101,0.54000174,3763.5,3762.9,2.65751]
[1733330635441,1.579,3763.4,3762.1,1.5922]
[1733330635644,2.65739,3763.1,3762.0,0.00170675]
[1733330635803,1.579,3763.4,3762.0,0.00170675]
[1733330635998,0.1579,3763.3,3762.0,0.00170675]
[1733330636404,1.579,3763.4,3762.0,0.00170675]
[1733330636598,1.579,3763.4,3762.7,2.6576]
[1733330636805,0.16603,3764.2,3762.6,1.5807]
[1733330637000,0.54010806,3763.7,3762.6,1.5807]
[1733330637246,0.54010806,3763.7,3763.4,2.65716]
[1733330637538,0.54010806,3763.7,3762.6,1.5807]
[1733330637539,1.6619,3764.1,3762.9,2.65751]
[1733330637712,1.6619,3764.1,3762.6,1.5807]
[1733330637912,1.6619,3764.1,3763.3,2.65722]
[1733330638236,0.5319327,3763.9,3762.6,2.09955501]
[1733330638402,0.5319327,3763.9,3763.0,2.65744]
[1733330638603,1.6619,3763.8,3762.7,2.65759]
[1733330638801,1.6619,3763.8,3762.8,2.65754]
[1733330639041,1.6619,3763.8,3762.9,2.65751]
[1733330639243,1.6619,3763.8,3762.0,1.58240675]
[1733330639244,0.21938327,3763.7,3762.0,1.58240675]
[1733330639552,0.21938327,3763.7,3762.9,2.65752]
[1733330639852,0.21938327,3763.7,3762.0,1.58240675]
[1733330640019,0.52996573,3763.5,3763.4,2.65715]
[1733330640210,0.52996573,3763.5,3762.3,2.65794]
[1733330640409,0.52996573,3763.5,3762.4,2.65787]
[1733330640646,0.52996573,3763.5,3762.2,2.65801]
[1733330640946,0.52996573,3763.5,3763.0,2.65744]
[1733330641147,1.6619,3763.8,3762.7,2.65759]
[1733330641315,1.6619,3763.8,3762.1,4.19717]
[1733330641518,0.54224601,3763.6,3763.4,2.6571]
[1733330641721,0.54224601,3763.6,3763.3,2.65723]
[1733330641929,0.54224601,3763.6,3763.1,2.65731]
[1733330642114,0.54224601,3763.6,3763.1,2.65732]
[1733330642313,1.6619,3763.8,3762.1,1.5391]
[1733330642519,1.6619,3763.8,3761.6,0.4088059]
[1733330642520,0.53368703,3763.8,3761.6,0.4088059]
[1733330642831,2.65739,3763.1,3762.0,2.65984675]
[1733330643044,1.6451,3763.4,3762.0,0.00170675]
[1733330643223,0.53081631,3762.7,3762.0,0.00170675]
[1733330643413,0.53081631,3762.7,3762.2,2.658]
[1733330643607,1.6451,3763.4,3762.0,0.00170675]
[1733330643922,0.53958794,3762.9,3762.0,2.65981675]
[1733330644121,0.53958794,3762.9,3762.0,0.00170675]
[1733330644449,0.53958794,3762.9,3762.0,2.65985675]
[1733330644659,0.53958794,3762.9,3762.0,0.00170675]
[1733330644806,1.6305,3762.7,3762.0,0.00170675]
[1733330645009,1.6305,3762.7,3762.1,2.65808]
[1733330645607,1.6305,3762.7,3762.0,0.00170675]
[1733330645744,1.84750879,3762.7,3762.0,0.00170675]
[1733330646313,4.50518879,3762.7,3762.0,0.00170675]
[1733330646555,1.84750879,3762.7,3762.0,0.00170675]
[1733330647815,0.53680785,3762.2,3762.0,0.00170675]
[1733330649029,0.85627063,3762.2,3762.0,0.00170675]
[1733330649432,0.53680785,3762.2,3762.0,0.00170675]
[1733330651776,1.6152,3763.1,3762.0,0.00170675]
[1733330651986,4.27259,3763.1,3762.0,2.65985675]
[1733330652150,1.6152,3763.1,3762.0,0.00170675]
[1733330652345,1.6152,3763.1,3762.3,2.65791]
[1733330652551,1.6152,3763.1,3762.0,0.00170675]
[1733330652917,1.6563,3764.2,3763.4,2.65717]
[1733330653454,0.53141996,3764.2,3763.4,2.65717]
[1733330653765,1.6065,3764.7,3763.4,2.65717]
[1733330654091,0.53157947,3764.3,3763.4,2.65717]
[1733330655490,0.53157947,3764.3,3763.1,4.23063]
[1733330655491,0.53157947,3764.3,3763.1,2.65737]
[1733330655664,1.6354,3763.7,3762.7,1.6509]
[1733330656267,1.6354,3763.7,3761.7,0.39575187]
[1733330656268,0.5203609,3763.4,3762.1,4.16892]
[1733330656468,0.25203609,3763.3,3762.3,2.65788]
[1733330656683,0.25203609,3763.3,3762.1,1.5109]
[1733330656889,0.5203609,3763.4,3763.3,2.65724]
[1733330657272,0.5203609,3763.4,3762.8,2.65756]
[1733330658094,0.5203609,3763.4,3762.6,2.65768]
[1733330658404,0.5203609,3763.4,3762.4,2.65782]
[1733330658405,1.6354,3763.3,3762.4,2.65785]
[1733330658559,1.6354,3763.3,3762.5,2.65776]
[1733330658560,0.41557609,3763.2,3762.5,2.65776]
[1733330658760,0.41557609,3763.2,3762.0,0.00170675]
[1733330658978,0.41557609,3763.2,3762.7,2.65762]
[1733330659206,0.41557609,3763.2,3762.3,2.6579]
[1733330659207,0.41557609,3763.2,3762.1,1.5639]
[1733330659404,0.41557609,3763.2,3762.5,2.65774]
[1733330659587,0.41557609,3763.2,3762.6,2.65771]
[1733330660498,0.2571337,3763.1,3762.0,0.00170675]
[1733330660700,0.2571337,3763.1,3762.2,2.65797]
[1733330660898,0.2571337,3763.1,3762.0,0.00170675]
[1733330661262,0.2571337,3763.1,3762.3,2.65791]
[1733330661602,0.23081098,3763.0,3762.3,2.65791]
[1733330662207,0.23081098,3763.0,3762.0,0.00170675]
[1733330662372,0.23081098,3763.0,3762.0,2.65983675]
[1733330662698,0.23081098,3763.0,3762.5,2.6578]
[1733330662883,0.53095227,3763.0,3762.3,2.65794]
[1733330663086,1.6354,3763.3,3762.2,1.5268]
[1733330663292,0.52914468,3763.6,3763.3,2.65717]
[1733330663457,0.52914468,3763.6,3762.3,2.65794]
[1733330663661,0.52914468,3763.6,3762.2,1.5268]
[1733330663898,0.52914468,3763.6,3762.7,2.65762]
[1733330664102,0.52914468,3763.6,3762.3,2.65788]
[1733330664284,0.52914468,3763.6,3762.3,2.65794]
[1733330664498,0.52914468,3763.6,3762.0,0.00170675]
[1733330664697,0.52914468,3763.6,3762.1,2.65808]
[1733330664913,0.66971047,3763.4,3762.5,2.65776]
[1733330665116,0.66971047,3763.4,3762.7,2.65766]
[1733330665273,0.66971047,3763.4,3762.0,0.00170675]
[1733330665478,0.66971047,3763.4,3762.5,2.6578]
[1733330665688,0.66971047,3763.4,3762.6,2.65772]
[1733330665979,0.52914468,3763.6,3763.0,2.65744]
[1733330666212,0.55,3763.4,3762.4,2.65784]
[1733330666622,1.5011,3763.2,3762.1,2.65802]
[1733330666929,0.55,3763.1,3762.0,0.00170675]
[1733330667090,0.20511,3763.0,3762.1,2.65807]
[1733330667290,0.53892692,3762.5,3762.1,2.65807]
[1733330667486,0.53892692,3762.5,3762.0,0.00170675]
[1733330668596,0.53892692,3762.5,3762.0,2.65979675]
[1733330668798,1.5011,3762.4,3762.0,0.00170675]
[1733330668999,0.20400269,3762.3,3762.0,0.00170675]
[1733330670221,2.86196269,3762.3,3762.0,0.00170675]
[1733330670423,0.20400269,3762.3,3762.0,0.00170675]
[1733330670579,0.20400269,3762.3,3760.9,4.28529]
[1733330670580,2.2139,3762.0,3760.6,0.07473625]
[1733330670780,1.6639,3760.9,3760.6,0.07473625]
[1733330671926,0.22139,3761.9,3760.6,0.07473625]
[1733330672093,1.5627,3761.9,3761.0,2.6588]
[1733330672296,1.5627,3761.9,3760.6,0.07473625]
[1733330672483,1.5627,3761.9,3761.1,2.65874]
[1733330672823,1.5627,3761.9,3760.6,1.67433625]
[1733330672824,2.09170039,3761.9,3760.6,4.33347625]
[1733330673125,1.6564,3762.3,3760.6,4.33347625]
[1733330673329,0.52033522,3762.0,3761.0,2.65886]
[1733330673482,2.0,3763.5,3761.0,2.65886]
[1733330673483,1.6564,3763.1,3762.6,2.65768]
[1733330673794,0.53686815,3763.2,3762.6,2.65766]
[1733330673992,0.53686815,3763.2,3763.0,2.65744]
[1733330674328,2.0,3763.5,3762.4,1.607]
[1733330674480,2.0,3763.5,3763.4,2.65717]
[1733330675507,4.0,3764.0,3763.4,4.32267]
[1733330675508,1.34327,3764.0,3763.4,4.32267]
[1733330675718,1.34327,3764.0,3763.9,2.65681]
[1733330676231,1.34327,3764.0,3762.9,1.6655]
[1733330676590,1.34327,3764.0,3763.2,2.65728]
[1733330676781,1.632937,3764.0,3763.2,2.65728]
[1733330676993,1.632937,3764.0,3762.4,1.6655]
[1733330677189,1.632937,3764.0,3763.0,2.65744]
[1733330677450,0.55,3763.9,3762.8,2.65756]
[1733330677594,0.55,3763.6,3762.4,1.6655]
[1733330677795,0.55,3763.6,3762.9,2.6575]
[1733330678428,0.55,3763.6,3762.5,2.6578]
[1733330678633,0.534821,3763.7,3762.4,1.6655]
[1733330678634,0.534821,3763.7,3763.2,2.65726]
[1733330678794,0.534821,3763.7,3762.6,2.65773]
[1733330678997,0.534821,3763.7,3763.1,2.65736]
[1733330679609,0.55,3763.6,3762.9,2.65751]
[1733330679823,0.55,3763.6,3763.0,2.65743]
[1733330680003,0.55,3763.6,3762.6,2.6577]
[1733330680196,1.5974,3763.5,3761.4,0.40210639]
[1733330680397,1.34327,3764.0,3762.9,1.502]
[1733330680643,1.34327,3764.0,3763.0,2.65745]
[1733330680836,1.34327,3764.0,3763.4,2.65714]
[1733330681039,1.34327,3764.0,3762.9,4.15945]
[1733330681040,0.53923091,3763.8,3763.6,2.65701]
[1733330681224,0.53923091,3763.8,3762.9,1.502]
[1733330681430,0.53923091,3763.8,3763.3,2.65721]
[1733330681731,0.53923091,3763.8,3762.9,1.502]
[1733330682041,1.34327,3764.0,3763.1,2.65738]
[1733330682245,1.34327,3764.0,3763.5,2.65704]
[1733330682246,0.52116622,3763.9,3763.5,2.65704]
[1733330682396,1.34327,3764.0,3763.3,2.6572]
[1733330682601,1.34327,3764.0,3763.5,2.65707]
[1733330683187,1.34327,3764.0,3762.9,1.502]
[1733330683323,1.34327,3764.0,3763.2,2.65725]
[1733330683525,1.34327,3764.0,3763.5,2.65703]
[1733330683711,1.34327,3764.0,3763.5,2.65709]
[1733330683909,1.34327,3764.0,3763.9,2.65681]
[1733330684439,1.34327,3764.0,3763.6,2.65698]
[1733330684610,1.519,3763.9,3762.4,1.6195]
[1733330685037,1.519,3763.9,3762.5,2.6578]
[1733330685250,1.519,3763.9,3763.0,2.65744]
[1733330685417,0.286227,3763.8,3762.8,2.65759]
[1733330685617,0.55,3763.7,3762.4,1.6195]
[1733330685819,1.5057,3763.6,3761.5,4.27028]
[1733330686130,2.65733,3763.2,3761.5,4.27028]
[1733330686330,0.52700529,3762.7,3761.8,2.65829]
[1733330686551,0.55,3762.6,3761.8,2.65829]
[1733330686759,0.55,3762.6,3760.7,0.53891021]
[1733330686760,0.80827053,3762.6,3761.4,2.65856]
[1733330686955,2.65803,3762.2,3761.0,2.65881]
[1733330687364,0.55,3762.0,3760.6,1.65003625]
[1733330687655,1.6189,3761.9,3760.6,2.73381625]
[1733330687840,0.55,3761.8,3760.7,2.65901]
[1733330688056,0.55,3761.4,3760.6,0.07473625]
[1733330688338,0.54061091,3761.5,3760.9,2.65892]
[1733330688542,1.6189,3761.9,3761.1,2.65877]
[1733330688727,1.6189,3761.9,3761.2,2.65868]
[1733330688914,1.6189,3761.9,3761.5,2.6585]
[1733330689339,1.587,3762.4,3761.8,2.6583]
[1733330689716,1.587,3762.4,3761.2,1.5949]
[1733330689717,0.5398707,3762.3,3761.9,2.65822]
[1733330689918,0.5398707,3762.3,3761.2,4.2536]
[1733330690356,0.5398707,3762.3,3761.2,1.5949]
[1733330690572,1.587,3762.4,3761.2,1.5949]
[1733330690720,2.1205418,3762.4,3761.2,1.5949]
[1733330690922,0.55,3762.0,3760.2,1.6811856]
[1733330691123,0.55,3762.0,3760.3,2.65936]
[1733330691432,1.587,3762.4,3760.6,1.5128]
[1733330691640,0.5398707,3762.7,3762.2,2.658]
[1733330691947,1.6251,3763.7,3761.8,2.6583]
[1733330692256,1.6251,3763.7,3761.7,1.5128]
[1733330692257,1.6251,3763.7,3762.8,2.65753]
[1733330692461,1.6251,3763.7,3762.9,2.65751]
[1733330692664,1.6251,3763.7,3762.4,2.65785]
[1733330692823,0.54114711,3763.3,3762.5,2.6578]
[1733330693018,0.54114711,3763.3,3762.9,2.6575]
[1733330693554,0.54114711,3763.3,3761.7,1.5128]
[1733330693757,0.54114711,3763.3,3762.5,2.65779]
[1733330693967,1.5633,3763.2,3761.6,2.65844]
[1733330694122,1.5633,3763.2,3761.2,1.6454]
[1733330694474,0.4052968,3763.7,3760.5,1.6454]
[1733330694475,0.5275852,3762.1,3760.5,1.6454]
[1733330694676,0.55,3762.7,3762.2,2.658]
[1733330694877,0.55,3762.7,3760.5,1.6454]
[1733330694878,1.5633,3762.8,3761.0,4.25311]
[1733330695077,1.5249,3763.2,3761.5,2.65851]
[1733330695380,1.5249,3763.2,3760.9,0.3]
[1733330695381,1.5249,3763.2,3762.7,2.65764]
[1733330695556,1.5249,3763.2,3762.4,2.65781]
[1733330695935,1.5249,3763.2,3761.5,1.5523]
[1733330696145,1.5249,3763.2,3762.4,2.65787]
[1733330696346,0.15249,3763.1,3762.2,2.65794]
[1733330696551,0.15249,3763.1,3762.2,2.65798]
[1733330696746,0.52443555,3762.8,3762.2,2.65799]
[1733330696947,0.15249,3763.1,3761.9,2.6582]
[1733330697149,0.15249,3763.1,3761.5,1.5523]
[1733330697150,0.55,3763.0,3761.5,1.5523]
[1733330697376,0.55,3763.0,3762.3,2.65793]
[1733330697537,0.54277617,3762.9,3762.3,2.65793]
[1733330697869,0.54277617,3762.9,3761.7,2.65837]
[1733330698088,0.55,3762.6,3761.7,2.65831]
[1733330698372,0.55,3762.6,3761.8,2.6583]
[1733330698532,0.81035762,3762.6,3761.8,2.6583]
[1733330698734,0.81035762,3762.6,3761.5,2.65846]
[1733330698928,0.81035762,3762.6,3761.5,2.6585]
[1733330699165,0.81035762,3762.6,3761.6,2.65844]
[1733330699334,0.81035762,3762.6,3761.2,2.65868]
[1733330699538,0.55,3762.2,3760.5,1.6063]
[1733330699856,0.55,3762.2,3761.2,2.65865]
[1733330700255,0.55,3762.2,3761.3,2.65865]
[1733330700477,0.55,3762.2,3761.2,2.65871]
[1733330700695,0.55,3762.2,3761.1,2.65872]
[1733330700830,0.55,3762.2,3760.7,2.65907]
[1733330700831,1.5848,3761.5,3760.1,1.5376]
[1733330701162,0.55,3761.9,3761.3,2.6586]
[1733330701334,0.53799949,3761.9,3760.5,2.65922]
[1733330701532,0.53799949,3761.9,3761.4,2.65857]
[1733330701777,1.5848,3762.0,3760.6,2.68573225]
[1733330702010,0.55,3762.3,3761.2,1.5713]
[1733330702170,2.0596,3762.4,3762.1,2.65808]
[1733330702380,2.58504954,3762.4,3762.1,2.65808]
[1733330702535,2.58504954,3762.4,3761.3,2.65865]
[1733330702737,1.02464954,3762.4,3761.9,2.65818]
[1733330703179,1.02464954,3762.4,3762.3,2.65794]
[1733330703180,0.4992,3762.4,3762.3,2.65794]
[1733330704084,0.4992,3762.4,3762.3,4.21984]
[1733330704688,0.4992,3762.4,3761.9,2.65822]
[1733330704979,0.6995,3762.4,3761.9,2.65822]
[1733330705277,0.4992,3762.4,3762.0,2.65815]
[1733330705484,0.4942146,3762.4,3761.1,2.65873]
[1733330705634,0.4929701,3762.4,3761.7,2.65836]
[1733330705834,0.4929701,3762.4,3760.9,2.65893]
[1733330706176,0.4929701,3762.4,3762.3,2.65794]
[1733330708297,0.4929701,3762.4,3762.0,2.65814]
[1733330708436,0.4929701,3762.4,3762.3,2.65794]
[1733330709839,0.4929701,3762.4,3762.0,2.65814]
[1733330710066,0.4929701,3762.4,3762.1,2.65808]
[1733330710372,0.4929701,3762.4,3761.3,2.65865]
[1733330710870,0.4929701,3762.4,3761.0,1.5825]
[1733330711249,0.4929701,3762.4,3762.1,2.65806]
[1733330711451,0.4929701,3762.4,3761.0,1.5825]
[1733330711679,0.4929701,3762.4,3762.2,2.658]
[1733330711836,0.4929701,3762.4,3761.6,2.65839]
[1733330712179,1.6113,3761.8,3760.1,1.5537]
[1733330712359,1.6113,3761.8,3760.0,1.0]
[1733330712360,0.71113,3761.7,3760.2,2.8231156]
[1733330712563,0.55,3761.5,3761.0,2.65885]
[1733330713078,1.5788,3761.5,3760.2,0.1636856]
[1733330713236,1.5788,3761.1,3760.2,0.1636856]
[1733330713458,0.55,3760.8,3760.2,0.1636856]
[1733330713702,0.26788,3760.7,3760.2,0.1636856]
[1733330713928,0.5272673,3760.3,3760.2,2.8231056]
[1733330714206,1.5788,3760.9,3760.2,0.1636856]
[1733330714361,1.5788,3760.9,3760.4,2.65922]
[1733330714556,1.5788,3760.9,3760.2,0.1636856]
[1733330714557,0.55,3760.8,3760.2,0.1636856]
[1733330714808,0.55,3760.6,3760.2,0.1636856]
[1733330714966,0.52641653,3760.5,3760.4,2.65929]
[1733330715162,1.6316,3761.6,3760.4,2.65929]
[1733330715370,1.6316,3761.6,3760.3,2.65936]
[1733330715565,0.53051088,3761.3,3761.0,2.6588]
[1733330715762,0.53051088,3761.3,3761.2,2.65872]
[1733330716159,0.74672197,3761.3,3760.5,2.65916]
[1733330716361,0.74672197,3761.3,3760.2,0.1636856]
[1733330716362,0.53051088,3761.3,3760.2,0.1636856]
[1733330716578,0.53051088,3761.3,3760.4,2.65923]
[1733330716802,0.53051088,3761.3,3761.1,2.65873]
[1733330717126,0.53051088,3761.3,3761.2,2.65872]
[1733330717614,0.53051088,3761.3,3760.9,2.65887]
[1733330717778,0.74672197,3761.3,3760.9,2.65887]
[1733330717973,0.74672197,3761.3,3760.2,0.1636856]
[1733330718316,2.1816,3761.2,3760.2,0.1636856]
[1733330718462,2.1816,3761.2,3760.2,2.8230856]
[1733330718463,1.6384,3761.1,3760.2,2.8230856]
[1733330718662,0.55,3761.0,3760.2,2.8230456]
[1733330718902,0.52476815,3760.4,3760.3,2.65936]
[1733330719806,1.6384,3761.1,3760.8,2.659]
[1733330720021,1.6384,3761.1,3760.2,0.1636856]
[1733330720161,1.5904,3761.6,3761.5,2.65851]
[1733330720664,1.5904,3762.3,3761.5,2.65851]
[1733330720930,0.20833701,3762.2,3762.1,2.65808]
[1733330721166,1.5904,3762.3,3762.2,2.65801]
[1733330721398,1.5904,3762.3,3761.6,2.65839]
[1733330721584,1.5904,3762.3,3761.3,2.65865]
[1733330721907,2.11100702,3762.3,3762.2,2.65801]
[1733330722109,2.37140473,3762.3,3762.2,2.65801]
[1733330722603,0.52060702,3762.3,3762.2,2.65801]
[1733330723721,1e-07,3762.4,3762.3,2.65794]
[1733330724208,1.5902,3764.3,3764.2,2.6566]
[1733330724407,1.5771,3764.9,3764.2,2.6566]
[1733330724725,1.5771,3764.9,3763.4,1.5782]
[1733330724726,1.5771,3764.9,3764.8,2.65618]
[1733330724919,5.0,3765.0,3764.9,2.65611]
[1733330725704,1.5771,3766.0,3765.9,2.6554]
[1733330725904,1.5771,3766.0,3764.4,1.5782]
[1733330725905,1.5771,3767.2,3766.2,2.65514]
[1733330726116,0.15771,3767.1,3764.5,0.02655245]
[1733330726323,0.53745932,3766.3,3765.0,2.65604]
[1733330726625,0.53745932,3766.3,3766.2,2.65519]
[1733330727234,0.53745932,3766.3,3765.0,1.5563]
[1733330727525,1.6404,3766.2,3765.6,2.65556]
[1733330727826,0.21778593,3766.1,3764.9,2.6561]
[1733330727994,0.21778593,3766.1,3764.2,2.6566]
[1733330728322,0.21778593,3766.1,3765.7,2.65554]
[1733330728502,0.21778593,3766.1,3765.9,2.65537]
[1733330728872,1.6093,3767.9,3766.5,2.65493]
[1733330729073,1.6093,3767.9,3767.0,2.65458]
[1733330729313,1.6093,3767.9,3767.1,2.65452]
[1733330729474,1.6093,3767.9,3766.3,1.6067]
[1733330729807,1.6093,3767.9,3767.4,2.65432]
[1733330730021,5.994,3770.0,3767.5,1.6067]
[1733330730232,0.52555946,3768.5,3767.6,0.02653472]
[1733330730375,0.52555946,3768.5,3767.6,2.6542]
[1733330731051,0.52555946,3768.5,3768.1,2.65383]
[1733330731179,0.52555946,3768.5,3767.5,1.6067]
[1733330731180,1.645,3769.2,3767.8,2.65401]
[1733330731379,1.645,3769.2,3767.5,1.6067]
[1733330731380,0.53492205,3768.7,3767.4,2.65431]
[1733330731577,1.5569,3768.6,3766.3,1.5154]
[1733330731819,0.53492205,3768.7,3765.1,0.3]
[1733330731820,0.54267454,3767.9,3765.8,4.17085]
[1733330731987,0.54267454,3767.9,3765.8,1.5154]
[1733330731988,1.5569,3767.8,3765.8,1.5154]